Cogmind - Beta 9.1 @@@ ROGUE MODE // 2019.11.07 @ 04:14:26 Player: Finestep Result: Self-destructed Performance ------------- Evolutions (7) 3500 Regions Visited (19) 3800 Robots Destroyed (391) 1955 Value Destroyed (12163) 12163 Prototype IDs (53) 1060 Alien Tech Used (0) 0 Bonus (1172) 1172 TOTAL SCORE: 23650 Bonus ------- High Alert Combat Kills 2360 Follower Combat Kills 3278 Network Hubs Disabled 200 Met Data Miner 300 Met Imprinter 300 Was Imprinted 300 Built Enhanced Grunts 300 Friendly Fire -5866 Cogmind --------- Core Integrity 1142/1300 Matter 45/300 Energy 170/170 System Corruption 17% Temperature Cool (339) Location -3/Research Parts ------- Power (2) Micro Fission Core Propulsion (5) Utility (12) Large Storage Unit High-capacity Storage Unit High-capacity Storage Unit Advanced Signal Interpreter Experimental Terrain Scan Processor Advanced Targeting Computer Advanced Target Analyzer Improved Armor Integrity Analyzer Weapon (2) Neutron Cannon Hypervelocity Coil Gun Inventory (26) Reinforced Fission Core Improved Gyrokinetic Inverter Improved Gyrokinetic Inverter Improved Gyrokinetic Inverter Improved Gyrokinetic Inverter Improved Cooling System Zionite Biocell (1000) Matter Compressor (250) Long-range Sensor Array Long-range Sensor Array Experimental Sensor Array Long-range Terrain Scanner Advanced Particle Charger Advanced Transmission Jammer Improved Cloaking Device Advanced System Shield Advanced System Shield Advanced Component Analysis Suite Improved System Restoration Module Compact HERF Cannon Hypervelocity Coil Gun Heavy Shock Bomb Launcher Mini Smartbomb Launcher Peak State ------------ Power Micro Fission Core Micro Fission Core Propulsion Flexi-carbon Leg Flexi-carbon Leg Flexi-carbon Leg Flexi-carbon Leg Myomer Leg Utility Experimental Heat Sink Large Storage Unit High-capacity Storage Unit High-capacity Storage Unit Advanced Signal Interpreter Experimental Terrain Scan Processor Advanced Targeting Computer Advanced Target Analyzer Improved Armor Integrity Analyzer Improved Cloaking Device Centrium Medium Armor Plating Centrium Medium Armor Plating Weapon Neutron Cannon Neutron Cannon Inventory Reinforced Fission Core Myomer Leg Improved Gyrokinetic Inverter Improved Gyrokinetic Inverter Improved Gyrokinetic Inverter Improved Gyrokinetic Inverter Improved Cooling System Zionite Biocell Matter Compressor Long-range Sensor Array Long-range Sensor Array Experimental Sensor Array Long-range Terrain Scanner Advanced Particle Charger Advanced Transmission Jammer Zionite Weapon Casing Improved Medium Armor Plating Advanced System Shield Advanced System Shield Advanced Component Analysis Suite Improved System Restoration Module Compact HERF Cannon Hypervelocity Coil Gun Hypervelocity Coil Gun Heavy Shock Bomb Launcher Mini Smartbomb Launcher [Rating: 125] Favorites ----------- Power Micro Nuclear Core Engine Light Angular Momentum Engine Power Core Micro Nuclear Core Reactor Light Antimatter Reactor Propulsion Flexi-carbon Leg Treads Advanced Treads Leg Flexi-carbon Leg Wheel Armored Huge Wheel Hover Unit Improved Airjet Utility High-capacity Storage Unit Device Long-range Terrain Scanner Storage High-capacity Storage Unit Processor Advanced Targeting Computer Hackware Hacking Suite Protection Hardened Medium Armor Plating Weapon Gauss Rifle Energy Gun Tesla Rifle Energy Cannon Advanced Beam Cannon Ballistic Gun Gauss Rifle Ballistic Cannon Hardcell Cannon Launcher Proton Missile Launcher Special Weapon Improved Remote Datajack Slashing Weapon Phasing Sabre Build | -11 -10 -9 -8 -7 -7 -7 -7 -6 -6 -6 -6 -5 -5 -5 -5 -5 -5 -4 -3 ------- Run | Scr Mat Mat Mat Fac Low Low Zio Pro Fac Low Dat Pro Fac Ext Cet Arc Hub Fac Res Slots Evolved 14 | . . 2 2 2 . . . . 2 . . . 2 . . . . 2 2 Power 1 | . . . . . . . . . . . . . 1 . . . . . . Propulsion 3 | . . 1 . . . . . . 1 . . . . . . . . . 1 Utility 10 | . . 1 2 2 . . . . 1 . . . 1 . . . . 2 1 Weapon . | . . . . . . . . . . . . . . . . . . . . Parts Attached 495 | 6 20 26 51 48 3 1 5 6 38 2 . 14 52 50 17 8 24 107 17 Power 42 | 1 2 1 8 4 . . . . . . . . 5 8 2 1 1 9 . Engine 13 | 1 2 . 2 3 . . . . . . . . 2 3 . . . . . Core 19 | . . 1 6 1 . . . . . . . . 3 5 1 . . 2 . Reactor 10 | . . . . . . . . . . . . . . . 1 1 1 7 . Propulsion 104 | 2 9 9 16 7 . . . . 8 . . . 4 19 2 . 4 22 2 Treads 42 | . 6 5 15 5 . . . . 8 . . . 2 1 . . . . . Leg 48 | . . . . . . . . . . . . . . 18 2 . 4 22 2 Wheel 12 | 2 3 4 1 1 . . . . . . . . 1 . . . . . . Hover 2 | . . . . 1 . . . . . . . . 1 . . . . . . Flight . | . . . . . . . . . . . . . . . . . . . . Utility 220 | 1 4 10 11 17 2 1 . 6 25 2 . 11 33 12 5 7 9 54 10 Device 97 | . . 2 4 4 1 . . 3 10 1 . 8 14 6 2 5 5 26 6 Storage 12 | 1 4 2 . 1 . . . . 2 . . . 2 . . . . . . Processor 13 | . . . . 5 . . . . 3 1 . . . . . . . 4 . Hackware 5 | . . . . 2 . . . . . . . . . . . 2 . 1 . Protection 93 | . . 6 7 5 1 1 . 3 10 . . 3 17 6 3 . 4 23 4 Artifact . | . . . . . . . . . . . . . . . . . . . . Weapon 129 | 2 5 6 16 20 1 . 5 . 5 . . 3 10 11 8 . 10 22 5 Energy Gun 15 | 1 . 3 2 2 . . . . . . . . 3 3 . . . 1 . Energy Cannon 12 | . . . 5 1 . . . . . . . 1 . . . . . 2 3 Ballistic Gun 63 | 1 5 3 6 9 1 . 3 . 3 . . 2 3 6 6 . 6 8 1 Ballistic Cannon 9 | . . . 1 1 . . 1 . . . . . 1 . . . . 4 1 Launcher 11 | . . . 1 3 . . 1 . . . . . 2 1 1 . . 2 . Special Weapon 1 | . . . . . . . . . . . . . . . . . . 1 . Impact Weapon . | . . . . . . . . . . . . . . . . . . . . Slashing Weapon 18 | . . . 1 4 . . . . 2 . . . 1 1 1 . 4 4 . Piercing Weapon . | . . . . . . . . . . . . . . . . . . . . Special Melee Weapon . | . . . . . . . . . . . . . . . . . . . . Unidentified Prototypes 19 | . . 1 3 4 . . . . 3 . . . 3 . 5 . . . . Parts Lost 61 | . 5 5 16 4 . . . . . . . 1 1 5 . . 3 8 13 Power 9 | . 1 . 3 1 . . . . . . . . 1 . . . 1 1 1 Propulsion 17 | . 2 2 3 . . . . . . . . . . 2 . . 1 1 6 Utility 18 | . . 2 6 1 . . . . . . . . . 2 . . . 2 5 Weapon 17 | . 2 1 4 2 . . . . . . . 1 . 1 . . 1 4 1 Highest Loss Streak 13 | . 2 3 3 2 . . . . . . . 1 1 2 . . 2 4 13 Average Slot Usage (%) 96 | . 92 98 98 97 92 92 92 92 92 93 93 93 93 98 98 99 100 99 96 Engine 2 | . 12 1 1 5 . . . . . . . . 1 4 . . . . . Core 4 | . . 9 7 . 7 7 7 7 6 6 6 6 8 5 9 1 . 1 8 Reactor 1 | . . . . . . . . . . . . . . . 1 8 11 8 . Treads 9 | . 15 11 23 20 7 7 7 7 13 13 13 13 11 . . . . . . Leg 8 | . . . . . . . . . . . . . . 21 23 23 23 20 20 Wheel 4 | . 11 21 3 1 7 7 7 7 6 6 6 6 4 . . . . . . Device 5 | . . 2 8 5 9 7 7 6 4 6 6 4 7 2 1 9 6 8 12 Storage 20 | . 22 23 27 23 23 23 23 23 20 20 20 20 17 17 17 17 17 15 14 Processor 16 | . . . . 11 15 15 15 15 22 26 26 26 23 23 23 23 23 26 23 Protection 5 | . . 6 8 7 5 7 7 8 4 . . 1 3 8 9 . 3 4 5 Energy Gun 1 | . 8 9 . . . . . . . . . . 1 1 . . . . . Ballistic Gun 9 | . 19 12 8 9 15 15 12 15 11 13 13 12 7 6 8 11 9 5 4 Naked Turns . | . . . . . . . . . . . . . . . . . . . . Heaviest Build 145 | 10 53 91 100 112 103 103 108 122 122 99 99 102 116 140 137 135 141 145 123 Greatest Support 105 | 20 46 26 66 66 28 28 28 28 60 28 28 28 28 85 89 73 83 90 105 Greatest Overweight (x) 5 | . 5 5 4 3 3 3 3 4 4 3 3 3 4 5 1 1 1 1 1 Average Overweight (x) 1 | . . 2 1 1 3 3 3 3 2 3 3 3 3 1 1 1 1 1 1 Largest Inventory Capacity 26 | 6 18 26 26 26 26 26 26 26 26 26 26 26 26 26 26 26 26 26 26 Average Capacity 24 | 5 11 18 26 26 26 26 26 26 26 26 26 26 26 26 26 26 26 26 26 Most Carried 26 | 6 17 21 26 26 26 26 26 26 26 26 25 25 26 26 26 26 26 26 26 Average Carried 24 | 3 10 17 25 25 26 26 25 26 25 25 25 24 25 25 25 24 24 25 25 Final Capacity 26 | 6 18 26 26 26 26 26 26 26 26 26 26 26 26 26 26 26 26 26 26 Final Carried 26 | 6 17 21 26 26 26 26 26 26 26 25 25 25 26 26 26 24 25 26 23 Class Distribution -------------------- 46% | Messiah-Mutant 28% | Hauler-Mutant 10% | Messiah-Skirmisher 5% | Mutant 4% | Scavenger-Mutant 4% | Messiah-Assassin Dominant Class ---------------- Mutant | -10/Materials Scavenger-Mutant | -9/Materials Hauler-Mutant | -8/Materials Hauler-Mutant | -7/Factory Hauler-Mutant | -7/Lower Caves Hauler-Mutant | -7/Lower Caves Messiah-Mutant | -7/Zion Messiah-Mutant | -6/Proximity Caves Messiah-Mutant | -6/Factory Messiah-Mutant | -6/Lower Caves Messiah-Mutant | -6/Data Miner Messiah-Mutant | -5/Proximity Caves Messiah-Mutant | -5/Factory Messiah-Mutant | -5/Extension Messiah-Mutant | -5/Cetus Messiah-Skirmisher | -5/Archives Messiah-Mutant | -5/Hub_04(d) Messiah-Mutant | -4/Factory Messiah-Mutant | -3/Research Resources | -11 -10 -9 -8 -7 -7 -7 -7 -6 -6 -6 -6 -5 -5 -5 -5 -5 -5 -4 -3 ----------- Run | Scr Mat Mat Mat Fac Low Low Zio Pro Fac Low Dat Pro Fac Ext Cet Arc Hub Fac Res Matter Collected 10376 | 266 216 606 1283 1309 121 44 10 162 986 . . 251 1086 963 465 193 703 1712 . Remotely . | . . . . . . . . . . . . . . . . . . . . Salvage Created 18721 | 133 884 1885 2506 3629 114 . . 194 1475 . . 100 1067 2495 214 297 1214 2289 225 Parts 911 | 10 51 112 129 193 7 . . 14 56 . . 3 41 99 14 28 48 95 11 Haulers Intercepted 20 | . 1 5 5 2 . . . . 2 . . . 1 . . . 3 1 . Recyclers Shooed 23 | 1 1 2 2 5 . . . . 4 . . . 2 1 . . . 5 . Parts Field Recycled . | . . . . . . . . . . . . . . . . . . . . Retrieved Matter . | . . . . . . . . . . . . . . . . . . . . Parts Self-Destructed 39 | . . . . . 7 . . 26 . . . 6 . . . . . . . Prevented 4 | . . . . . . . . 4 . . . . . . . . . . . Kills | -11 -10 -9 -8 -7 -7 -7 -7 -6 -6 -6 -6 -5 -5 -5 -5 -5 -5 -4 -3 ------- Run | Scr Mat Mat Mat Fac Low Low Zio Pro Fac Low Dat Pro Fac Ext Cet Arc Hub Fac Res Combat Hostiles Destroyed 240 | . 18 27 40 43 3 . . 6 8 . . 2 14 27 . 1 18 29 4 Melee 1 | . . . . . . . . . . . . . . . . . . 1 . Guns 162 | . 18 27 16 20 3 . . 6 8 . . 2 9 22 . 1 18 12 . Cannons 57 | . . . 23 17 . . . . . . . . . 3 . . . 10 4 AOE 17 | . . . 1 6 . . . . . . . . 5 2 . . . 3 . Classes Destroyed 21 | 2 5 3 4 1 1 . . . . . . . . 1 . . . 3 1 Worker 24 | . 3 5 2 6 . . . . 1 . . . . 2 . . 3 2 . Builder 14 | . . . 4 5 . . . . 1 . . . 1 . . . 1 1 1 Tunneler 8 | 2 . 1 2 . . . . . . . . . . 2 . . . 1 . Hauler 20 | . 1 5 5 2 . . . . 2 . . . 1 . . . 3 1 . Recycler 45 | 1 3 3 4 14 . . . . 7 . . . 2 6 . . . 5 . Carrier 1 | . . . 1 . . . . . . . . . . . . . . . . Mechanic 1 | . . . . . . . . . . . . . . . . . . 1 . Operator 8 | . . . 1 2 . . . . . . . . . . . 4 . 1 . Watcher 23 | . 2 4 5 5 . . . . 2 . . . 2 1 1 . . 1 . Swarmer 68 | . 9 4 8 4 3 . . 4 3 . . 1 5 8 . . 9 10 . Saboteur 1 | . . . . . . . . . . . . . . . . . . 1 . Grunt 100 | . 9 15 20 25 . . . 1 3 . . . 5 8 . . 5 9 . Brawler 7 | . . 1 3 1 . . . . . . . . . 1 . . . 1 . Duelist 6 | . . 1 1 1 . . . 1 . . . . . . . . 1 1 . Protector 2 | . . . . . 1 . . . . . . . . . . . 1 . . Sentry 29 | . . 6 7 3 . . . . 1 . . 1 1 8 . 1 . 1 . Demolisher 1 | . . . . . . . . . . . . . . . . . . . 1 Hunter 9 | . . . 1 4 . . . . . . . . 2 . . . . 2 . Programmer 15 | . . . . 5 . . . . 1 . . . 1 . . . 2 4 2 Behemoth 3 | . . . . . . . . . . . . . . 2 . . . . 1 Enhanced Grunt 1 | . . . . . . . . . . . . . . . 1 . . . . Z-Light 1 | . . . . . . . . . . . . . . . . . . 1 . Butcher 1 | . . . . . . . . . . . . . . 1 . . . . . Guerrilla 1 | . . . . . . . . . . . . . . . . . 1 . . Wizard 1 | . . . . . . . . . . . . . . . . 1 . . . Best Kill Streak 13 | 3 4 13 10 9 3 . . 3 5 . . 1 6 8 1 2 6 7 2 Combat Bots Only 9 | . 4 6 9 5 3 . . 3 3 . . 1 5 5 . 1 5 7 2 Max Kills in Single Turn 6 | 1 2 2 2 3 2 . . 2 2 . . 1 6 2 1 1 2 3 1 Gunslinging 1 | . 1 . . . . . . 1 1 . . . . 1 . . 1 1 . Exploded 5 | . . . 1 3 . . . . . . . . 5 2 . . . 3 . Melee 1 | . . . . . . . . . . . . . . . . . . 1 . Uniques/NPCs Destroyed 1 | . . . . . . . . . . . . . . . 1 . . . . A7 (-5/Cetus) Combat | -11 -10 -9 -8 -7 -7 -7 -7 -6 -6 -6 -6 -5 -5 -5 -5 -5 -5 -4 -3 -------- Run | Scr Mat Mat Mat Fac Low Low Zio Pro Fac Low Dat Pro Fac Ext Cet Arc Hub Fac Res Damage Taken 18856 | . 721 1184 3147 2046 14 . . 196 691 . . 395 551 1815 152 . 1453 3826 2665 Core 1400 | . 76 132 274 103 . . . 8 56 . . 45 . 157 . . 135 256 158 Absorbed by Shields 160 | . . . . 43 4 . . . . . . . . 48 65 . . . . Core Remaining (%) 75 | 100 69 67 50 . . . . 84 . . . 88 . . . . 70 77 . Volleys Fired 1031 | 6 87 113 191 183 3 . . 9 76 . . 13 42 81 21 13 58 104 31 Largest 2 | 2 2 2 2 2 2 . . 2 2 . . 2 2 2 2 2 2 2 2 Hottest 184 | 70 70 79 93 93 53 . . 56 56 . . 118 125 120 70 70 70 163 184 Shots Fired 1995 | 12 172 217 374 355 6 . . 18 152 . . 26 81 163 40 26 116 180 57 Gun 1560 | 12 172 217 203 234 6 . . 18 152 . . 24 76 148 36 26 116 116 4 Cannon 411 | . . . 168 115 . . . . . . . 2 3 12 . . . 58 53 Launcher 23 | . . . 3 6 . . . . . . . . 2 3 4 . . 5 . Special 1 | . . . . . . . . . . . . . . . . . . 1 . Kinetic 1458 | 6 116 135 254 253 6 . . 18 152 . . 24 70 96 36 26 116 143 7 Thermal 446 | 6 56 44 110 96 . . . . . . . 2 3 52 . . . 31 46 Explosive 2 | . . . . . . . . . . . . . 1 . . . . 1 . Electromagnetic 88 | . . 38 10 6 . . . . . . . . 7 15 4 . . 4 4 Robot Hit Streak 31 | 6 14 31 14 17 3 . . 5 11 . . 9 28 25 3 3 15 10 14 Robot Miss Streak 7 | 1 7 5 4 5 1 . . 2 4 . . 1 1 4 3 4 6 3 3 Penetration Max 1 | . . . . 1 . . . 1 1 . . . 1 1 1 1 1 1 1 Secondary Targets 25 | . 2 3 . 2 . . . 2 2 . . . . 5 . . 7 2 . Max Gunslinging Chain 1 | . 1 1 . 1 . . . 1 1 . . . . 1 . . 1 1 . Shots Hit Robots 1373 | 8 111 158 243 260 3 . . 13 104 . . 20 65 123 25 13 62 123 42 Core Hits 663 | 5 49 72 100 128 4 . . 8 47 . . 6 35 67 13 11 42 66 10 Critical Hits 134 | . 1 3 17 16 2 . . 3 13 . . 1 7 18 10 5 21 13 4 Critical Kills 54 | . . . 8 8 2 . . 2 5 . . . 3 6 1 3 7 7 2 Critical Parts Destroyed 72 | . 1 3 9 8 . . . 1 7 . . . 4 10 6 2 14 6 1 Melee Attacks 47 | . . . 1 4 . . . . 14 . . . 2 . 7 . 5 14 . Impact . | . . . . . . . . . . . . . . . . . . . . Slashing 47 | . . . 1 4 . . . . 14 . . . 2 . 7 . 5 14 . Piercing . | . . . . . . . . . . . . . . . . . . . . Sneak Attacks 14 | . . . . . . . . . 1 . . . . . 7 . . 6 . Combat Hostiles . | . . . . . . . . . . . . . . . . . . . . Follow-up Attacks . | . . . . . . . . . . . . . . . . . . . . Damage Inflicted 34497 | 85 1034 2089 4503 5438 111 . . 346 2739 . . 410 1650 4006 1952 459 2762 5224 1689 Guns 21874 | 85 1034 2057 1807 3378 111 . . 346 2619 . . 378 1391 3388 903 459 2046 1838 34 Cannons 8045 | . . . 2465 1669 . . . . . . . 32 60 263 . . . 1901 1655 Explosions 2910 | . . 32 231 391 . . . . . . . . 199 355 325 . 716 661 . Melee 1652 | . . . . . . . . . 104 . . . . . 724 . . 824 . Ramming 16 | . . . . . . . . . 16 . . . . . . . . . . Kinetic 21059 | 33 590 976 2592 3729 111 . . 346 2619 . . 378 1263 2204 903 459 2046 2776 34 Thermal 8147 | 52 444 518 1618 1384 . . . . . . . 32 58 1319 231 . . 963 1528 Explosive 484 | . . . . . . . . . . . . . 192 . . . . 292 . Electromagnetic 3139 | . . 595 293 325 . . . . . . . . 137 483 94 . 716 369 127 Impact . | . . . . . . . . . . . . . . . . . . . . Slashing 1652 | . . . . . . . . . 104 . . . . . 724 . . 824 . Piercing . | . . . . . . . . . . . . . . . . . . . . Highest Corruption 17 | . . . 2 5 2 2 2 . . . . . 4 5 5 5 3 8 17 Average Corruption 3 | . . . 2 2 2 2 2 . . . . . 3 4 5 3 1 5 10 Corruption Purged 8 | . . . . 3 . . . . . . . . . . . 5 . . . Effects 209 | . . . 1 52 2 1 1 . . . . . 2 78 24 7 3 28 10 Message Errors 47 | . . . . 13 . . . . . . . . 1 13 7 3 2 8 . Matter Fused 45 | . . . . 10 . . . . . . . . 1 18 7 . . 8 1 Heat Flow Errors 21 | . . . . 6 . . 1 . . . . . . 9 1 . . 3 1 Energy Discharges 20 | . . . 1 5 1 1 . . . . . . . 8 2 1 . 1 . Data Loss (minor) 28 | . . . . 7 1 . . . . . . . . 13 2 . . 4 1 Data Loss (major) 7 | . . . . . . . . . . . . . . 5 . 1 . . 1 Misfires 8 | . . . . . . . . . . . . . . 4 2 . . 2 . Targeting Errors 28 | . . . . 8 . . . . . . . . . 8 3 2 1 1 5 Weapon Failures 5 | . . . . 3 . . . . . . . . . . . . . 1 1 Overload Shots . | . . . . . . . . . . . . . . . . . . . . Overflow Damage 766 | . . 2 126 2 . . . . . . . . . . . . 86 489 61 Projectiles 184 | . . . 70 2 . . . . . . . . . . . . . 51 61 Explosions 157 | . . 2 56 . . . . . . . . . . . . . 86 13 . Melee 425 | . . . . . . . . . . . . . . . . . . 425 . Knockbacks 26 | . . . 8 3 . . . . 1 . . . 2 1 . . . 11 . Impact 1 | . . . . . . . . . 1 . . . . . . . . . . Kinetic 24 | . . . 7 3 . . . . . . . . 2 1 . . . 11 . Secondary 1 | . . . 1 . . . . . . . . . . . . . . . . Self-Inflicted Damage 112 | . . 29 . . . . . . . . . . . 12 . . 71 . . Shots 3 | . . 1 . . . . . . . . . . . 1 . . 1 . . Rammed 1 | . . . . . . . . . 1 . . . . . . . . . . Targets Rammed 1 | . . . . . . . . . 1 . . . . . . . . . . Kicked . | . . . . . . . . . . . . . . . . . . . . Crushed . | . . . . . . . . . . . . . . . . . . . . Highest Temperature 332 | 50 295 255 83 259 . . 94 42 11 . . 54 135 254 135 45 332 243 330 Average Temperature 52 | 24 73 63 19 32 . . 50 14 3 . . 15 50 67 21 14 100 46 37 Received Heat Transfer 3848 | . 198 438 918 612 . . . 39 300 . . 72 63 488 30 . 300 363 27 Effects 3 | . . 1 . . . . . . . . . . . . . . 2 . . Shutdowns 1 | . . . . . . . . . . . . . . . . . 1 . . Energy Bleed 1 | . . . . . . . . . . . . . . . . . 1 . . Interference 1 | . . 1 . . . . . . . . . . . . . . . . . Siege Activations . | . . . . . . . . . . . . . . . . . . . . Robots Corrupted 3 | . . . . . . . . . . . . . . . . . . 3 . Combat Hostiles 3 | . . . . . . . . . . . . . . . . . . 3 . Parts Fried 12 | . . 2 1 1 . . . . . . . . . 1 . . . 7 . Impact Corruptions . | . . . . . . . . . . . . . . . . . . . . Robots Melted . | . . . . . . . . . . . . . . . . . . . . Combat Hostiles . | . . . . . . . . . . . . . . . . . . . . Parts Melted 14 | . 1 . 1 5 . . . . 1 . . . . 4 . . . 1 1 Heat Transferred 11811 | 148 1295 1261 2838 2431 . . . . . . . 37 74 1641 150 . . 1036 900 Parts Sabotaged 4 | . . . . . . . . . . . . . . . . . . 4 . Parts Stolen . | . . . . . . . . . . . . . . . . . . . . Parts Stripped . | . . . . . . . . . . . . . . . . . . . . Power Chain Reactions 7 | . . 1 2 2 . . . . . . . . . 1 1 . . . . Missiles Intercepted . | . . . . . . . . . . . . . . . . . . . . Alert | -11 -10 -9 -8 -7 -7 -7 -7 -6 -6 -6 -6 -5 -5 -5 -5 -5 -5 -4 -3 ------- Run | Scr Mat Mat Mat Fac Low Low Zio Pro Fac Low Dat Pro Fac Ext Cet Arc Hub Fac Res Peak Influence 1750 | 15 387 525 752 862 . . . . 243 . . . 402 356 725 544 1750 1519 840 Average Influence 460 | 4 218 307 421 465 . . . . 128 . . . 151 203 552 383 921 1241 754 Maximum Alert Level 5 | . 2 2 3 3 . . . . 1 . . . 2 1 3 2 5 4 3 Low Security (%) 26 | . . . . . . . . . . . . . . . . . . . . Level 1 33 | . . . . . . . . . . . . . . . . . . . . Level 2 18 | . . . . . . . . . . . . . . . . . . . . Level 3 10 | . . . . . . . . . . . . . . . . . . . . Level 4 10 | . . . . . . . . . . . . . . . . . . . . Level 5 . | . . . . . . . . . . . . . . . . . . . . High Security . | . . . . . . . . . . . . . . . . . . . . Max Security . | . . . . . . . . . . . . . . . . . . . . Squads Dispatched 73 | . 5 3 8 13 . . . . 7 . . . 5 . . . 8 20 4 Investigation 17 | . 4 3 2 4 . . . . 1 . . . 1 . . . 1 1 . Extermination 16 | . . . . 5 . . . . 2 . . . 1 . . . 1 6 1 Reinforcement 19 | . 1 . 1 4 . . . . 4 . . . 2 . . . 4 2 1 Assault 10 | . . . 1 . . . . . . . . . . . . . 1 8 . Garrison 11 | . . . 4 . . . . . . . . . 1 . . . 1 3 2 Intercept . | . . . . . . . . . . . . . . . . . . . . Construction Impeded 5 | . . . . . . . . . 1 . . . 1 . . . 1 1 1 Haulers Reinforced 6 | . . . . 2 . . . . 2 . . . . . . . 2 . . Stealth | -11 -10 -9 -8 -7 -7 -7 -7 -6 -6 -6 -6 -5 -5 -5 -5 -5 -5 -4 -3 --------- Run | Scr Mat Mat Mat Fac Low Low Zio Pro Fac Low Dat Pro Fac Ext Cet Arc Hub Fac Res Distress Signals 22 | . 1 3 6 2 . . . . 4 . . . . 3 1 . 1 . 1 Communications Jammed 15 | . . . . . . . . . . . . . . . . . 1 14 . Distress Signals 15 | . . . . . . . . . . . . . . . . . 1 14 . Times Spotted 438 | . 31 41 60 70 3 . . 15 37 . . 5 17 39 10 11 38 51 10 Peak Tracking Total 17 | . 6 8 8 7 3 . . 8 4 . . 3 4 7 5 1 17 7 5 Tactical Retreats 32 | . 3 2 6 7 . . . . 3 . . 3 1 2 . . 5 . . Traps | -11 -10 -9 -8 -7 -7 -7 -7 -6 -6 -6 -6 -5 -5 -5 -5 -5 -5 -4 -3 ------- Run | Scr Mat Mat Mat Fac Low Low Zio Pro Fac Low Dat Pro Fac Ext Cet Arc Hub Fac Res Traps Triggered 18 | . 5 1 4 3 . . . . . . . . 2 2 . . . 1 . Indirectly 2 | . . . 2 . . . . . . . . . . . . . . . . Trap Hack Attempts . | . . . . . . . . . . . . . . . . . . . . Triggered . | . . . . . . . . . . . . . . . . . . . . Disarmed . | . . . . . . . . . . . . . . . . . . . . Reprogrammed . | . . . . . . . . . . . . . . . . . . . . Reused . | . . . . . . . . . . . . . . . . . . . . Traps Extracted . | . . . . . . . . . . . . . . . . . . . . Installed . | . . . . . . . . . . . . . . . . . . . . Triggered . | . . . . . . . . . . . . . . . . . . . . Machines | -11 -10 -9 -8 -7 -7 -7 -7 -6 -6 -6 -6 -5 -5 -5 -5 -5 -5 -4 -3 ---------- Run | Scr Mat Mat Mat Fac Low Low Zio Pro Fac Low Dat Pro Fac Ext Cet Arc Hub Fac Res Machines Disabled 47 | . . . 1 1 . . . . 4 . . . 6 4 2 4 22 3 . Max in Single Turn 9 | . . . 1 1 . . . . 1 . . . 3 2 . 1 9 1 . Garrison Access 4 | . . . . 1 . . . . . . . . 1 . . . 2 . . Network Hub 1 | . . . . . . . . . . . . . . . . . 1 . . Machines Sabotaged . | . . . . . . . . . . . . . . . . . . . . Garrisons Compromised . | . . . . . . . . . . . . . . . . . . . . Overloaded Fab Kills . | . . . . . . . . . . . . . . . . . . . . Fab Network Shutdowns . | . . . . . . . . . . . . . . . . . . . . Hacking | -11 -10 -9 -8 -7 -7 -7 -7 -6 -6 -6 -6 -5 -5 -5 -5 -5 -5 -4 -3 --------- Run | Scr Mat Mat Mat Fac Low Low Zio Pro Fac Low Dat Pro Fac Ext Cet Arc Hub Fac Res Machines Accessed 54 | . 7 10 7 15 . . . 1 2 . 4 . 3 . . . 2 3 . Terminals 31 | . 6 9 5 10 . . . 1 . . . . . . . . . . . Fabricators 6 | . . . . 2 . . . . 2 . . . 1 . . . . 1 . Repair Stations 3 | . . . . 1 . . . . . . . . 1 . . . . 1 . Recycling Units 4 | . 1 1 1 1 . . . . . . . . . . . . . . . Scanalyzers 1 | . . . . . . . . . . . . . . . . . . 1 . Garrison Access 5 | . . . 1 1 . . . . . . . . 1 . . . 2 . . Total Hacks 174 | . 22 34 17 39 . . . 2 7 . 26 . 8 . . . 3 16 . Successful 107 | . 10 19 11 17 . . . 1 4 . 26 . 4 . . . 2 13 . Failed 66 | . 12 15 6 21 . . . 1 3 . . . 4 . . . 1 3 . Catastrophic 7 | . 1 1 1 2 . . . 1 1 . . . . . . . . . . Database Lockouts 1 | . . . . 1 . . . . . . . . . . . . . . . Manual 126 | . 12 17 6 18 . . . 1 12 . . . 15 2 10 . 12 15 6 Terminals 96 | . 21 33 12 28 . . . 2 . . . . . . . . . . . Fabricators 23 | . . . . 6 . . . . 7 . . . 3 . . . . 7 . Repair Stations 8 | . . . . 1 . . . . . . . . 4 . . . . 3 . Recycling Units 7 | . 1 1 3 2 . . . . . . . . . . . . . . . Scanalyzers 6 | . . . . . . . . . . . . . . . . . . 6 . Garrison Access 8 | . . . 2 2 . . . . . . . . 1 . . . 3 . . Terminal Hacks 58 | . 7 11 6 7 . . . 1 . . 26 . . . . . . . . Record 12 | . . . . . . . . 1 . . 11 . . . . . . . . Part Schematic 8 | . . . . 1 . . . . . . 7 . . . . . . . . Robot Schematic 6 | . . 1 . . . . . . . . 5 . . . . . . . . Robot Analysis 2 | . 2 . . . . . . . . . . . . . . . . . . Prototype ID Bank 8 | . . 2 2 1 . . . . . . 3 . . . . . . . . Branch Access Points 2 | . . 1 . 1 . . . . . . . . . . . . . . . Emergency Access Points 1 | . . 1 . . . . . . . . . . . . . . . . . Terminal Index 2 | . 1 . . 1 . . . . . . . . . . . . . . . Alert Level 2 | . 1 1 . . . . . . . . . . . . . . . . . Unreport Threat 5 | . . 2 2 1 . . . . . . . . . . . . . . . Locate Traps 2 | . 1 . 1 . . . . . . . . . . . . . . . . Recall Investigation 1 | . . 1 . . . . . . . . . . . . . . . . . Recall Extermination 1 | . . . . 1 . . . . . . . . . . . . . . . Recall Reinforcements 1 | . . . . 1 . . . . . . . . . . . . . . . Hauler Manifests 1 | . 1 . . . . . . . . . . . . . . . . . . Zone Layout 4 | . 1 2 1 . . . . . . . . . . . . . . . . Fabricator Hacks 12 | . . . . 4 . . . . 3 . . . 1 . . . . 4 . Network Status 1 | . . . . . . . . . . . . . . . . . . 1 . Load Schematic 6 | . . . . 2 . . . . 1 . . . 1 . . . . 2 . Build 5 | . . . . 2 . . . . 2 . . . . . . . . 1 . Repair Station Hacks 4 | . . . . . . . . . . . . . 2 . . . . 2 . Scan Component 2 | . . . . . . . . . . . . . 1 . . . . 1 . Repair 2 | . . . . . . . . . . . . . 1 . . . . 1 . Recycling Unit Hacks 3 | . . . 2 1 . . . . . . . . . . . . . . . Retrieve Components 3 | . . . 2 1 . . . . . . . . . . . . . . . Scanalyzer 6 | . . . . . . . . . . . . . . . . . . 6 . Insert Component 3 | . . . . . . . . . . . . . . . . . . 3 . Analyze 3 | . . . . . . . . . . . . . . . . . . 3 . Garrison Access Hacks 2 | . . . . 1 . . . . . . . . . . . . 1 . . Seal Access 2 | . . . . 1 . . . . . . . . . . . . 1 . . Unauthorized Hacks 54 | . 7 19 7 8 . . . . 5 . . . 2 . . . 3 3 . Terminals 14 | . 2 7 2 3 . . . . . . . . . . . . . . . Track 4 | . . 3 1 . . . . . . . . . . . . . . . . Assimilate 2 | . . . . 2 . . . . . . . . . . . . . . . Botnet 7 | . 2 4 . 1 . . . . . . . . . . . . . . . Disrupt 1 | . . . 1 . . . . . . . . . . . . . . . . Fabricators 2 | . . . . . . . . . 1 . . . . . . . . 1 . Siphon 2 | . . . . . . . . . 1 . . . . . . . . 1 . Repair Stations . | . . . . . . . . . . . . . . . . . . . . Recycling Units 4 | . 1 1 1 1 . . . . . . . . . . . . . . . Tunnel 4 | . 1 1 1 1 . . . . . . . . . . . . . . . Scanalyzers . | . . . . . . . . . . . . . . . . . . . . Garrison Access 2 | . . . . . . . . . . . . . 1 . . . 1 . . Jam 2 | . . . . . . . . . . . . . 1 . . . 1 . . Data Cores Recovered 1 | . . . . 1 . . . . . . . . . . . . . . . Used . | . . . . . . . . . . . . . . . . . . . . Hacking Detections 42 | . 6 8 6 14 . . . 1 2 . . . 2 . . . 1 2 . Full Trace Events 6 | . 2 . 1 2 . . . . 1 . . . . . . . . . . Feedback Events . | . . . . . . . . . . . . . . . . . . . . Feedback Blocked . | . . . . . . . . . . . . . . . . . . . . Robot Schematics Acquired 10 | . . 1 . . . . . . . . 5 . . . 4 . . . . Robots Built 2 | . . . . 2 . . . . . . . . . . . . . . . Matter 372 | . . . . 372 . . . . . . . . . . . . . . . Time 148 | . . . . 148 . . . . . . . . . . . . . . . Total Robot Build Rating 4 | . . . . 4 . . . . . . . . . . . . . . . Part Schematics Acquired 38 | . . . . 1 . . . . . . 7 . 11 . . . . 19 . Parts Built 3 | . . . . . . . . . 2 . . . . . . . . 1 . Matter 595 | . . . . . . . . . 382 . . . . . . . . 213 . Time 364 | . . . . . . . . . 212 . . . . . . . . 152 . Total Part Build Rating 17 | . . . . . . . . . 12 . . . . . . . . 5 . Parts Repaired 2 | . . . . . . . . . . . . . 1 . . . . 1 . Time 122 | . . . . . . . . . . . . . 14 . . . . 108 . Parts Recycled . | . . . . . . . . . . . . . . . . . . . . Recycled Matter . | . . . . . . . . . . . . . . . . . . . . Retrieved Matter . | . . . . . . . . . . . . . . . . . . . . Retrieved Components 12 | . . . 2 10 . . . . . . . . . . . . . . . Parts Scanalyzed 3 | . . . . . . . . . . . . . . . . . . 3 . Part Schematics Acquired 3 | . . . . . . . . . . . . . . . . . . 3 . Parts Damaged 1 | . . . . . . . . . . . . . . . . . . 1 . Bothacking | -11 -10 -9 -8 -7 -7 -7 -7 -6 -6 -6 -6 -5 -5 -5 -5 -5 -5 -4 -3 ------------ Run | Scr Mat Mat Mat Fac Low Low Zio Pro Fac Low Dat Pro Fac Ext Cet Arc Hub Fac Res Used RIF Installer . | . . . . . . . . . . . . . . . . . . . . Robots Hacked 1 | . . . . . . . . . . . . . . . . . . 1 . Non-combat 1 | . . . . . . . . . . . . . . . . . . 1 . Combat . | . . . . . . . . . . . . . . . . . . . . Robot Hacks Applied 1 | . . . . . . . . . . . . . . . . . . 1 . find_chute 1 | . . . . . . . . . . . . . . . . . . 1 . Relay Couplers Released . | . . . . . . . . . . . . . . . . . . . . Robots Rewired 18 | . . . . . . . . . . . . . . 18 . . . . . Allies Hacked . | . . . . . . . . . . . . . . . . . . . . Hacks Repelled . | . . . . . . . . . . . . . . . . . . . . Allies | -11 -10 -9 -8 -7 -7 -7 -7 -6 -6 -6 -6 -5 -5 -5 -5 -5 -5 -4 -3 -------- Run | Scr Mat Mat Mat Fac Low Low Zio Pro Fac Low Dat Pro Fac Ext Cet Arc Hub Fac Res Total Allies 71 | . . . . 4 . . 9 . 6 . . 1 6 26 10 . . 6 3 Largest Group 22 | . . . . 3 2 . 9 9 5 . . 1 4 13 22 14 12 3 3 Highest-Rated Group 1218 | . . . . 60 34 . 273 273 249 . . 94 210 491 1218 793 731 288 233 Highest-Rated Ally 156 | . . . . 26 24 . 40 40 70 . . 94 94 156 150 94 94 103 103 Zionite Dispatches 11 | . . . . . . . . . 2 . . . 2 . 2 . . 3 2 Heavy 3 | . . . . . . . . . . . . . . . 1 . . 1 1 Light 3 | . . . . . . . . . 1 . . . 1 . . . . 1 . Recon 1 | . . . . . . . . . . . . . 1 . . . . . . Fire 1 | . . . . . . . . . 1 . . . . . . . . . . Hacker 1 | . . . . . . . . . . . . . . . 1 . . . . Demo 1 | . . . . . . . . . . . . . . . . . . 1 . Infowar Resupply 1 | . . . . . . . . . . . . . . . . . . . 1 Total Orders 26 | . . . . 6 1 . . . 3 . . . 2 3 5 . . 5 1 GOTO 15 | . . . . 4 1 . . . . . . . 1 2 5 . . 2 . FOLLOW 2 | . . . . 2 . . . . . . . . . . . . . . . DROP 1 | . . . . . . . . . . . . . . . . . . . 1 EXPLORE 8 | . . . . . . . . . 3 . . . 1 1 . . . 3 . Ally Attacks 558 | . . . . . . . . 47 96 . . 3 34 144 96 10 73 45 10 Total Damage 16183 | . . . . . . . . 1292 1819 . . 93 938 2892 2545 504 2660 2484 956 Kills 96 | . . . . . . . . 11 15 . . 1 3 11 17 4 18 14 2 Allies Corrupted 2 | . . . . . . . . . 1 . . . . . . . . 1 . Allies Melted . | . . . . . . . . . . . . . . . . . . . . Intel | -11 -10 -9 -8 -7 -7 -7 -7 -6 -6 -6 -6 -5 -5 -5 -5 -5 -5 -4 -3 ------- Run | Scr Mat Mat Mat Fac Low Low Zio Pro Fac Low Dat Pro Fac Ext Cet Arc Hub Fac Res Robot Analysis Total 2 | . 2 . . . . . . . . . . . . . . . . . . Derelict Logs Recovered 5 | . . . . . . 2 1 1 . . . 1 . . . . . . . Drone Launches 9 | . . . . . . . . . 4 . . . . 3 . . . 2 . Drone Recoveries . | . . . . . . . . . . . . . . . . . . . . Zionite Intel Received 6 | . . . . . . . . . 1 . . . 1 . 1 . 2 1 . Branch Access 1 | . . . . . . . . . 1 . . . . . . . . . . Component Schematics 1 | . . . . . . . . . . . . . . . . . . 1 . Prototype Schematics 1 | . . . . . . . . . . . . . 1 . . . . . . Unaware Schematics 1 | . . . . . . . . . . . . . . . 1 . . . . Trap Installations 1 | . . . . . . . . . . . . . . . . . 1 . . Depthwide Sectors/-1 1 | . . . . . . . . . . . . . . . . . 1 . . Exploration | -11 -10 -9 -8 -7 -7 -7 -7 -6 -6 -6 -6 -5 -5 -5 -5 -5 -5 -4 -3 ------------- Run | Scr Mat Mat Mat Fac Low Low Zio Pro Fac Low Dat Pro Fac Ext Cet Arc Hub Fac Res Turns Passed 22535 | 67 1109 1264 1994 3032 186 376 1262 904 1769 68 170 663 1283 3172 647 973 716 2447 433 Spaces Moved 11360 | 44 633 760 803 1498 134 289 949 577 910 30 78 342 700 1455 301 270 318 1073 196 Core 5 | 5 . . . . . . . . . . . . . . . . . . . Treads 2319 | . 285 5 627 1161 . . . . 131 30 78 . 2 . . . . . . Legs 3576 | . . . . . . . . . . . . . . 1418 301 270 318 1073 196 Wheels 5460 | 39 348 755 176 337 134 289 949 577 779 . . 342 698 37 . . . . . Hover . | . . . . . . . . . . . . . . . . . . . . Flight . | . . . . . . . . . . . . . . . . . . . . Fastest Speed 50 | 50 80 100 120 130 130 130 130 130 130 220 220 130 130 130 150 150 150 150 150 Average Speed 142 | 76 122 111 163 157 130 130 130 131 142 220 220 130 131 149 150 150 150 150 150 Slowest Speed 270 | 80 180 200 205 185 130 130 130 140 220 220 220 130 220 270 150 150 150 150 150 Overloaded Moves . | . . . . . . . . . . . . . . . . . . . . Propulsion Burnouts . | . . . . . . . . . . . . . . . . . . . . Robots Hopped 2 | . . . . . . . . . . . . . . 2 . . . . . Cave-ins Triggered . | . . . . . . . . . . . . . . . . . . . . Exploration Rate (%) 50 | 4 92 72 62 43 29 53 89 67 33 12 68 48 24 97 62 85 33 25 7 Regions Visited 19 Branch Regions 11 Pre-discovered Areas 12 | . 1 1 1 1 . . 2 . . . 1 . . . . . 5 . . Known Exits Taken 11 | . . . . 1 . . . . 1 1 1 1 1 1 1 1 1 1 . Unknown Exits Taken 8 | 1 1 1 1 . 1 1 1 1 . . . . . . . . . . . Scrap Searched 9 | . . . . . 1 2 4 1 . . . 1 . . . . . . . Spaces Dug 37 | . . . 1 4 . . . . 13 . . . 2 . . . 7 7 3 Terrain Destroyed 296 | . . 2 6 12 . . . . 13 . . 3 7 8 28 6 162 38 11 Melee 32 | . . . 1 4 . . . . 13 . . . 2 . . . 5 7 . Projectile 88 | . . . 1 1 . . . . . . . 3 . 8 11 6 30 17 11 AOE 176 | . . 2 4 7 . . . . . . . . 5 . 17 . 127 14 . Actions | -11 -10 -9 -8 -7 -7 -7 -7 -6 -6 -6 -6 -5 -5 -5 -5 -5 -5 -4 -3 --------- Run | Scr Mat Mat Mat Fac Low Low Zio Pro Fac Low Dat Pro Fac Ext Cet Arc Hub Fac Res Total 15743 | 63 822 971 1139 1895 139 290 977 699 1212 33 77 528 966 2289 448 815 424 1693 263 Wait 2138 | 2 48 37 27 84 . . 16 108 131 1 . 159 136 443 83 513 15 324 11 Move 11337 | 43 632 759 802 1497 133 288 948 576 909 29 77 341 699 1450 300 269 317 1072 196 Hop 2 | . . . . . . . . . . . . . . 2 . . . . . Pick Up 184 | 6 23 15 30 27 . . 4 . 12 . . 1 11 12 4 1 2 31 5 Fast Attach 132 | 6 9 11 16 16 . . . . 13 . . . 12 21 11 6 . 10 1 Attach 84 | . 8 6 16 10 . . 1 . 4 1 . 1 2 3 1 2 2 22 5 Detach 20 | . 2 1 1 6 . . . . 4 . . . 1 . 1 2 . 2 . Swap 280 | . 3 9 20 22 3 1 4 6 21 1 . 13 38 26 5 . 22 75 11 Drop 271 | . 10 20 35 46 . 1 4 . 25 1 . . 23 38 15 9 3 38 3 Fire 1031 | 6 87 113 191 183 3 . . 9 76 . . 13 42 81 21 13 58 104 31 Melee 47 | . . . 1 4 . . . . 14 . . . 2 . 7 . 5 14 . Ram . | . . . . . . . . . . . . . . . . . . . . Kick . | . . . . . . . . . . . . . . . . . . . . Crush 1 | . . . . . . . . . 1 . . . . . . . . . . Escape Stasis 18 | . . . . . . . . . . . . . . 18 . . . . . Rewire 194 | . . . . . . . . . . . . . . 194 . . . . . Trap . | . . . . . . . . . . . . . . . . . . . . Miscellaneous 4 | . . . . . . . . . 2 . . . . 1 . . . 1 . Route ------- -11/Scrapyard -10/Materials (discovered 5 exits: *Mat x3 / [*Min x2]) -9/Materials (discovered 2 exits: *Mat / *Min) -8/Materials (discovered 3 exits: *Fac / [*Sto x2]) -7/Factory (discovered 4 exits: *Fac x2 / *Low x2) -7/Lower Caves -7/Lower Caves (discovered 2 exits: Fac / [*Zio]) -7/Zion (discovered 2 exits: Dee / *Pro) -6/Proximity Caves -6/Factory (discovered 3 exits: *Fac / *Low x2) -6/Lower Caves -6/Data Miner -5/Proximity Caves -5/Factory (discovered 2 exits: Upp / *Ext) -5/Extension (discovered 3 exits: *Fac x2 / *Cet) -5/Cetus -5/Archives (discovered 3 exits: *Fac / *Hub x2) -5/Hub_04(d) (discovered 3 exits: *Fac x3) -4/Factory -3/Research History --------- Turn | Location | Event 12 | -11/Scrapyard | Discovered new exit (range 16) 68 | -11/Scrapyard | Entered Materials 108 | -10/Materials | Discovered new exit (range 13) 141 | -10/Materials | Discovered new exit (range 5) 179 | -10/Materials | Discovered new exit (range 6) 311 | -10/Materials | Build established: Mutant 395 | -10/Materials | Discovered new exit (range 10) 868 | -10/Materials | Discovered new exit (range 4) 1177 | -10/Materials | Entered another Materials area 1177 | -9/Materials | Evolved 2 slots: Propulsion x1, Utility x1 1322 | -9/Materials | Lost 3 parts (1n1u1w) 1529 | -9/Materials | Discovered new exit (range 9) 1735 | -9/Materials | Build established: Scavenger-Mutant 2101 | -9/Materials | Identified exit to Mines 2408 | -9/Materials | Discovered new exit (range 16) 2441 | -9/Materials | Entered another Materials area 2441 | -8/Materials | Evolved 2 slots: Utility x2 2502 | -8/Materials | Discovered new exit (range 6) 2593 | -8/Materials | Build established: Hauler-Mutant 2661 | -8/Materials | Discovered new exit (range 3) 2833 | -8/Materials | Garrison activated, responded to threat 3521 | -8/Materials | Garrison activated, responded to threat 3610 | -8/Materials | Destroyed 9 combat bots 3791 | -8/Materials | Lost 3 parts (1n1u1w) 4041 | -8/Materials | First assault squad dispatched 4257 | -8/Materials | Discovered new exit (range 16) 4435 | -8/Materials | Entered Factory 4435 | -7/Factory | Evolved 2 slots: Utility x2 5610 | -7/Factory | Fabricated I-25 Savior? 6270 | -7/Factory | Discovered new exit (range 15) 6311 | -7/Factory | Identified exit to Lower Caves 6809 | -7/Factory | Fabricated I-25 Savior? 6951 | -7/Factory | Discovered new exit (range 19) 7211 | -7/Factory | Found Prototype Launcher 7211 | -7/Factory | Identified Rocket Array 7274 | -7/Factory | Central database locked down 7467 | -7/Factory | Entered Lower Caves 7467 | -7/Lower Caves | Accompanied by 2 allies 7593 | -7/Lower Caves | Discovered new exit (range 15) 7653 | -7/Lower Caves | Entered another Lower Caves area 7653 | -7/Lower Caves | Discovered new exit (range 13) 7721 | -7/Lower Caves | Encountered a Warlord checkpoint 7746 | -7/Lower Caves | Learned Factory terminal intel 7987 | -7/Lower Caves | Discovered new exit (range 12) 8009 | -7/Lower Caves | Learned Factory security intel 8029 | -7/Lower Caves | Entered Zion 8141 | -7/Zion | Gained Derelict followers 8162 | -7/Zion | Discovered new exit (range 14) 8248 | -7/Zion | System corruption cleaned by Quarantine Array 8434 | -7/Zion | Learned location of Data Miner (-6) 8643 | -7/Zion | Imprinted 8646 | -7/Zion | Declared Zion's savior 8772 | -7/Zion | Identified exit to Deep Caves 8878 | -7/Zion | Visited the Megawrench Repair Shop 8939 | -7/Zion | Build established: Messiah-Mutant 9014 | -7/Zion | Gained Derelict followers 9085 | -7/Zion | Megawrench repaired 10 parts 9138 | -7/Zion | Learned location of Warlord (-4) 9291 | -7/Zion | Entered Proximity Caves 9291 | -6/Proximity Caves | Accompanied by 9 allies 9917 | -6/Proximity Caves | Discovered new exit (range 15) 10195 | -6/Proximity Caves | Entered Factory 10195 | -6/Factory | Accompanied by 5 allies 10195 | -6/Factory | Evolved 2 slots: Propulsion x1, Utility x1 10197 | -6/Factory | Loaded intel: 20 terminal locations 10424 | -6/Factory | Zion Light squad teleported in 10666 | -6/Factory | Found Prototype Protection 10666 | -6/Factory | Identified Zio. Weapon Casing 10699 | -6/Factory | Found Zio. Weapon Casing 10866 | -6/Factory | Build established: Messiah-Skirmisher 11056 | -6/Factory | Retrieved Zion intel report: Branch Access 11056 | -6/Factory | Identified exit to Lower Caves 11057 | -6/Factory | Zion Fire squad teleported in 11192 | -6/Factory | Fabricated Adv. Component Analysis Suite (x1) 11279 | -6/Factory | Fabricated Lrn. Sensor Array? 11448 | -6/Factory | Build established: Messiah-Mutant 11509 | -6/Factory | Terminal network hard line cut 11792 | -6/Factory | Discovered new exit (range 19) 11964 | -6/Factory | Entered Lower Caves 12009 | -6/Lower Caves | A Derelict revealed a hidden shortcut to meet someone special 12030 | -6/Lower Caves | Identified exit to Data Miner 12032 | -6/Lower Caves | Entered Data Miner 12032 | -6/Data Miner | Discovered new exit (range 6) 12074 | -6/Data Miner | Met Data Miner 12112 | -6/Data Miner | Learned location of Section 7 (-2) 12112 | -6/Data Miner | Acquired the access code to Warlord's prototype stash 12145 | -6/Data Miner | Received God Mode back door access code from Data Miner 12200 | -6/Data Miner | Identified exit to Proximity Caves 12202 | -6/Data Miner | Entered Proximity Caves 12214 | -5/Proximity Caves | Attracted the attention of an 0b10 checkpoint 12350 | -5/Proximity Caves | Escorted by Enhanced Grunt 12836 | -5/Proximity Caves | Discovered new exit (range 13) 12863 | -5/Proximity Caves | Identified exit to Factory 12865 | -5/Proximity Caves | Entered Factory 12865 | -5/Factory | Accompanied by 1 ally 12865 | -5/Factory | Evolved 2 slots: Power x1, Utility x1 12866 | -5/Factory | Identified exit to Upper Caves 12928 | -5/Factory | Retrieved Zion intel report: Prototype Schematics 12929 | -5/Factory | Zion Recon squad teleported in 13223 | -5/Factory | Repaired Arm. Huge Wheel 13576 | -5/Factory | Zion Light squad teleported in 13675 | -5/Factory | Found Zio. Weapon Casing 13678 | -5/Factory | Discovered new exit (range 21) 13701 | -5/Factory | Garrison activated, responded to threat 13738 | -5/Factory | Identified exit to Extension 13768 | -5/Factory | Incoming investigation squad redirected 13898 | -5/Factory | Found Zio. Weapon Casing 14085 | -5/Factory | Terminal network hard line cut 14148 | -5/Factory | Entered Extension 14532 | -5/Extension | Rescued a captive Derelict 14534 | -5/Extension | Rescued a captive Derelict 14869 | -5/Extension | Spotted B-75 Beast 14887 | -5/Extension | Destroyed B-75 Beast 14890 | -5/Extension | Spotted B-75 Beast 14904 | -5/Extension | Destroyed B-75 Beast 14973 | -5/Extension | Disrupted transfer network 15599 | -5/Extension | Discovered new exit (range 18) 15676 | -5/Extension | Terminal network hard line cut 15760 | -5/Extension | Discovered new exit (range 15) 15761 | -5/Extension | Discovered new exit (range 15) 15858 | -5/Extension | Rescued a captive Derelict 15881 | -5/Extension | Rescued a captive Derelict 16062 | -5/Extension | Rescued a captive Derelict 16064 | -5/Extension | Rescued a captive Derelict 16108 | -5/Extension | Rescued A7 16647 | -5/Extension | Rescued a captive Derelict 16864 | -5/Extension | Identified exit to Cetus 16873 | -5/Extension | Identified exit to Factory 17320 | -5/Extension | Entered Cetus 17320 | -5/Cetus | Accompanied by 12 allies 17325 | -5/Cetus | Acquired a Cetus Manufacturing Module code from A7 17343 | -5/Cetus | Spotted Cetus Guard 17343 | -5/Cetus | Spotted Cetus Guard 17343 | -5/Cetus | Allies destroyed Cetus Guard 17345 | -5/Cetus | Spotted Cetus Guard 17349 | -5/Cetus | Allies destroyed Cetus Guard 17349 | -5/Cetus | Spotted Cetus Guard 17357 | -5/Cetus | Allies destroyed Cetus Guard 17364 | -5/Cetus | Allies destroyed Cetus Guard 17428 | -5/Cetus | Started Cetus Manufacturing Module 17453 | -5/Cetus | Manufactured an Enhanced Grunt 17464 | -5/Cetus | Retrieved Zion intel report: Unaware Schematics 17465 | -5/Cetus | Zion Hacker squad teleported in 17471 | -5/Cetus | Zion Heavy squad teleported in 17478 | -5/Cetus | Manufactured an Enhanced Grunt 17503 | -5/Cetus | Manufactured an Enhanced Grunt 17528 | -5/Cetus | Manufactured an Enhanced Grunt 17530 | -5/Cetus | Discovered new exit (range 15) 17553 | -5/Cetus | Manufactured an Enhanced Grunt 17723 | -5/Cetus | Destroyed A7 17727 | -5/Cetus | Extracted ID and sensor layout for unrecognized location from A7's data core 17752 | -5/Cetus | Found Prototype Protection 17752 | -5/Cetus | Identified Med. Regenerative Plating 17805 | -5/Cetus | Identified exit to Archives 17967 | -5/Cetus | Entered Archives 17967 | -5/Archives | Accompanied by 14 allies 18045 | -5/Archives | Discovered exit to Factory (range 16) 18085 | -5/Archives | Discovered new exit (range 15) 18313 | -5/Archives | Discovered new exit (range 16) 18428 | -5/Archives | Identified exit to Hub_04(d) 18470 | -5/Archives | Unable to access archive contents 18485 | -5/Archives | Unable to access archive contents 18500 | -5/Archives | Unable to access archive contents 18613 | -5/Archives | Build established: Messiah-Skirmisher 18940 | -5/Archives | Entered Hub_04(d) 18940 | -5/Hub_04(d) | Accompanied by 12 allies 19026 | -5/Hub_04(d) | Retrieved Zion intel report: Depthwide Sectors/-1 19124 | -5/Hub_04(d) | Garrison activated, responded to threat 19142 | -5/Hub_04(d) | Retrieved Zion intel report: Trap Installations 19158 | -5/Hub_04(d) | Discovered exit to Factory (range 19) 19177 | -5/Hub_04(d) | Discovered exit to Factory (range 21) 19240 | -5/Hub_04(d) | First assault squad dispatched 19464 | -5/Hub_04(d) | Found Mni. Smartbomb Launcher 19498 | -5/Hub_04(d) | Discovered exit to Factory (range 22) 19650 | -5/Hub_04(d) | Network Hub disabled 19656 | -5/Hub_04(d) | Entered Factory 19656 | -4/Factory | Evolved 2 slots: Utility x2 19804 | -4/Factory | Build established: Messiah-Mutant 19846 | -4/Factory | Zion Heavy squad teleported in 19976 | -4/Factory | Incoming investigation squad redirected 20156 | -4/Factory | First assault squad dispatched 20176 | -4/Factory | Incoming assault squad redirected 20251 | -4/Factory | Fabricated Exp. Sensor Array (x1) 20471 | -4/Factory | Retrieved Zion intel report: Component Schematics 20472 | -4/Factory | Zion Demo squad teleported in 20526 | -4/Factory | Zion Light squad teleported in 20715 | -4/Factory | Incoming assault squad redirected 20722 | -4/Factory | Incoming assault squad redirected 20910 | -4/Factory | Repaired Centrium Medium Armor Plating 20993 | -4/Factory | Terminal network hard line cut 21215 | -4/Factory | Incoming assault squad redirected 21259 | -4/Factory | Garrison activated, responded to threat 21282 | -4/Factory | Found Zio. Weapon Casing 21354 | -4/Factory | Incoming assault squad redirected 21404 | -4/Factory | Lost 4 parts (1n2u1w) 21412 | -4/Factory | Destroyed 7 combat bots 21435 | -4/Factory | Incoming assault squad redirected 21785 | -4/Factory | Found Prototype Processor 21795 | -4/Factory | Identified Exp. Terrain Scan Processor 21930 | -4/Factory | Discovered new exit (range 21) 22004 | -4/Factory | Identified exit to Research 22011 | -4/Factory | Build established: Messiah-Skirmisher 22103 | -4/Factory | Entered Research 22103 | -3/Research | Evolved 2 slots: Propulsion x1, Utility x1 22201 | -3/Research | Zion Infowar Resupply teleported in 22253 | -3/Research | Zion Heavy squad teleported in 22394 | -3/Research | Spotted B-86 Titan 22402 | -3/Research | Garrison activated, responded to threat 22425 | -3/Research | Destroyed B-86 Titan 22489 | -3/Research | System corruption reached 10% 22536 | -3/Research | Self-destructed Last Messages --------------- 22530_ HV Slug penetrates U-05 Engineer. 22530_ U-05 Engineer suffers critical hit. 22530_ U-05 Engineer destroyed. 22530_ Penetrated by Slug. 22530_ Slug penetrates Wall. 22530_ Penetrated by Slug. 22530_ Zio. Weapon Casing destroyed. 22530_ Slug penetrates Wall. 22530_ Exp. Heat Sink destroyed. 22531_ Slug penetrates Wall. 22532_ U-05 Engineer builds a Wall. 22533_ System corrupted: Heat flow error (+297). 22533_ HV Slug penetrates Wall. 22533_ Penetrated by Slug. 22533_ Imp. Medium Armor Plating destroyed. 22535_ Slug penetrates Wall. 22535_ Penetrated by Slug. 22535_ Slug penetrates Wall. 22536_ U-05 Engineer builds a Wall. 22536_ Penetrated by Slug. Map ----- +----------------------------------------------------+ | ???????????????????#??##?#???#???????????????????? | | ??????????????##????#??##?##??#??????????????????? | | ????????????##?#?????#?#?########?#??????????????? | | ????????????????######?######??###?##????????????? | | ??????????? ??? ??? ? ??? ??? ??????????? | | ????????? ???? ? ???????????? | | ???? ??? ? ? ? ? ? ? ?????????? | | ?? ? ? ? ?????????? | | ?#############+#############+######+######?#?????? | | ###### ####### ? # #?###????? | | ###### ####### # ? ? ##?#?#???? | | ###### #####"" # """ ######???? | | ?###### #####"" # "?"" ######???? | | + #####G # """" #####?##?? | | ###### """"" #####"" # """ ? ######???? | | ###### """"" #####"" # ?#####?#?? | | ###### """"" ####### # #######?#? | | ################### # ##################?# | | ################### ## #### ############?#? | | ###################h## #### #######?####?#? | | ##################;/######+###### ######?######?# | | ###########u # ###### ############### | | ########### h # ###################### | | ########### ! ! # # ####?#### | | ########### u # # ########? | | ########### @# # """ """ ######### | | ###########! !=! p=% # # """ """ ########? | | ##################+####YY# # """ """ ######### | | % " #######?# | | # ######### | | + """ """ ######### | | # """ """ ######### | | ################ u ### """ """ ######?## | | ###### # ### ## ?### | | ###### # % ### ## ### | | ###### # #################? ### | | ###### === # + ?# | | ###### === # ###################### ? ? | | ###### == #% # ######### ? ? | | ###### #=%* # ######### ? #?? | | ###### #%] # ######### #?? | | #########+######! # ######### ??? | | # ###########????? | | # ""###### ???? | | + ""####?# ? ??? | | # Y"###### ?????? | | ########## ### # ""###### ????? | | ######### ### # ""#####? ??????? | | ######### ### # ######## ??????? | | # #### ### # #####??? ??????? | +----------------------------------------------------+ Best States ------------- Heat Dissipation 72 Energy Generation 41 Energy Capacity 565 Matter Stores 300 Matter Capacity 300 Sight Range 22 Robot Scan Range 30 Terrain Scan Range 24 Terrain Scan Density 1010 Jamming Range 14 Cloak Strength 3 Armor Coverage 550 Resistance: KI 30 Core Shielding 20 Weapon Shielding 100 Evasion (%) 44 Targeting Accuracy 8 Target Analysis 8 Armor Integrity Analysis 50 Recoil Reduction 3 Particle Charging 25 Offensive Hacking 20 Defensive Hacking 12 Item Schematics ----------------- Lrn. Sensor Array | -7/Factory | Hacked Mni. Smartbomb Launcher | -6/Data Miner | Free Cloaking Device | -6/Data Miner | Free Exp. Transmission Jammer | -6/Data Miner | Free Exp. Targeting Computer | -6/Data Miner | Free Exp. Sensor Array | -6/Data Miner | Free Lgt. Regenerative Plating | -6/Data Miner | Free Combat Drone Bay | -6/Data Miner | Free Antimatter Cannon | -5/Factory | Z-intel Adv. Power Amplifier | -5/Factory | Z-intel Com. Ion Cannon | -5/Factory | Z-intel F-cell Engine | -5/Factory | Z-intel Thunder Hammer | -5/Factory | Z-intel Cold Fusion Reactor | -5/Factory | Z-intel Imp. Energy Well | -5/Factory | Z-intel Ion Burst Cannon | -5/Factory | Z-intel Cld. Nuclear Pulse Thruster | -5/Factory | Z-intel Imp. Heavy Laser | -5/Factory | Z-intel Imp. Lightning Gun | -5/Factory | Z-intel Phase Gun | -4/Factory | Z-intel Adv. Transmission Jammer | -4/Factory | Z-intel Lrn. Tractor Beam | -4/Factory | Z-intel Maneuvering Thrusters | -4/Factory | Z-intel Matter Neutralizer | -4/Factory | Z-intel Imp. Power Shielding | -4/Factory | Z-intel Lrn. Missile Launcher | -4/Factory | Z-intel Hvy. Plasma Cannon | -4/Factory | Z-intel Point Defense Array | -4/Factory | Z-intel Hardcell Cannon | -4/Factory | Z-intel Corruption Screen | -4/Factory | Z-intel Flexi-carbon Leg | -4/Factory | Z-intel Hvy. Treads | -4/Factory | Z-intel Imp. Hacking Suite | -4/Factory | Z-intel Disruptor Cannon | -4/Factory | Z-intel Adv. Weight Redist. System | -4/Factory | Z-intel Exp. Optical Array | -4/Factory | Scanalyzed Phasing Sabre | -4/Factory | Scanalyzed Imp. Gyrokinetic Inverter | -4/Factory | Scanalyzed Robot Schematics ------------------ I-25 Savior | -9/Materials | Hacked S-27 Virus | -6/Data Miner | Free G-50 Soldier | -6/Data Miner | Free L-41 Fighter | -6/Data Miner | Free P-70 Sage | -6/Data Miner | Free I-36 Angel | -6/Data Miner | Free A-02 Transporter | -5/Cetus | Z-intel A-15 Conveyor | -5/Cetus | Z-intel R-06 Scavenger | -5/Cetus | Z-intel K-01 Serf | -5/Cetus | Z-intel Fabricated ------------ I-25 Savior | x1 | -7/Factory I-25 Savior | x1 | -7/Factory Adv. Component Analysis Suite | x1 | -6/Factory | Preloaded Lrn. Sensor Array | x1 | -6/Factory Exp. Sensor Array | x1 | -4/Factory Alien Tech Used ----------------- None Achievements -------------- None Challenges ------------ None Game ------ Seed SignalSmartbombClaw Manual? 0 Play Time 03:28:01 Cumulative 263.5 hours Start 2019.11.06 @ 20:40:04 End 2019.11.07 @ 04:14:26 Sessions 3 Manual Loads 0 Difficulty Rogue Special Mode None Game No. 204 Rogue 204 Adventurer 0 Explorer 0 Win Type - Total 3 Types 3/0/0/0/0/0/0 Lore% 73 Gallery% 77 Achievement% 54 Wizard Run 0 Options --------- ASCII 0 Keyboard 0 Movement Mouse Keybinds 1 Fullscreen 2 Font 24/Smallcaps Map View 76x50 Tactical HUD 1 Map Filters NONE Filters NONE Steam 1 RUN: bc4ca320-82da-4483-a6cb-47547688e513